[Event "CCT Julius Baer-D3 2024"]
[Site "Online"]
[Date "2024.09.27"]
[Round "2"]
[White "Alekseenko, Kirill"]
[Black "Caruana, Fabiano"]
[Result "0-1"]
[ECO "C50"]
[WhiteElo "2679"]
[BlackElo "2798"]
[Annotator "TA"]
[PlyCount "78"]
[EventDate "2024.09.25"]
[EventType "swiss"]
[EventCountry "NET"]
[SourceTitle "playchess.com"]
[Source "ChessBase"]
[SourceQuality "1"]
[TimeControl "600+2"]

{[%evp 9,78,6,14,8,8,9,12,0,0,0,0,7,21,18,22,28,24,14,45,22,50,56,59,56,50,52,83,21,10,31,40,29,27,0,21,7,0,0,0,0,79,103,154,0,0,-82,-75,-174,-148,-461,-445,-775,-754,-821,-831,-959,-947,-904,-911,-888,-893,-1479,-1458,-1432,-1437,-1781,-1778,-1688,-1678,-1623,-1542]} 1. e4 {[%emt 0:00:03]} e5 {[%emt 0:00:04]} 2. Nf3 {[%emt 0:00:01]} Nc6 {[%emt 0:00:00]} 3. Bc4 {[%emt 0:00:03]} Bc5 {[%emt 0:00:02]} 4. d3 {[%emt 0:00:01]} d6 {[%emt 0:00:04]} 5. a3 {[%emt 0:00:25]} h6 {[%emt 0:00:04]} 6. Nc3 {[%emt 0:00:15] C50: Hungarian Defence and Giuoco Pianissimo.} a6 {[%emt 0:00:03]} 7. Be3 {[%emt 0:00:10]} Nge7 $146 {[%emt 0:00:32]} ({Predecessor:} 7... Bxe3 8. fxe3 Nf6 9. O-O Be6 10. Nd5 Bxd5 11. exd5 Ne7 12. e4 Ng6 13. c3 O-O {0-1 Dominguez Aguilar,G (2327)-Hernandez Jimenez,A (2145) Mexico City Fenamac-B 3rd 2021 (6)}) 8. Bxc5 {[%emt 0:00:55]} dxc5 {[%emt 0:00:00]} 9. Nd5 {[%emt 0:00:00]} Be6 {[%emt 0:00:21]} 10. Ne3 {[%emt 0:00:20]} Qd7 {[%emt 0:00:09]} 11. O-O {[%emt 0:00:13][%cal Ob2b4]} Ng6 {[%emt 0:00:17]} 12. Bxe6 {[%emt 0:00:55]} Qxe6 {[%emt 0:00:02]} 13. g3 {[%emt 0:00:01][%cal Ob2b4]} O-O-O {[%emt 0:00:24] [#]} 14. b4 $1 {[%emt 0:00:27]} cxb4 {[%emt 0:01:28]} (14... Qd6 15. Nf5) 15. axb4 {[%emt 0:00:00]} Nxb4 {[%emt 0:00:01]} 16. Qb1 {[%emt 0:00:02]} Nc6 {[%emt 0:00:26]} 17. Qb2 {[%emt 0:00:14][%mdl 1024] Strongly threatening Rfb1. White has compensation.} a5 {[%emt 0:00:04]} 18. Rfb1 {[%emt 0:00:26]} (18. Qb5 $16) 18... b6 $11 {[%emt 0:00:02]} 19. Qb5 {[%emt 0:00:51]} Nge7 {[%emt 0:00:02] Prevents Nd5.} 20. c3 {[%emt 0:00:46]} f6 $1 {[%emt 0:00:48]} 21. Ra4 {[%emt 0:00:27]} Nb8 {[%emt 0:00:51]} 22. d4 {[%emt 0:00:16] d5 is the strong threat.} (22. Rxa5 bxa5 23. Qxb8+ Kd7 24. Qb5+ Qc6 25. Qxa5 Ra8 26. Nxe5+ (26. Qb4 $2 Rab8 $19) 26... fxe5 27. Qxe5 Qf6 28. Qb5+ Kd8 $17 (28... Qc6 29. Qe5 $17)) 22... Qc6 {[%emt 0:00:26]} 23. Qb3 {[%emt 0:00:06] And now Rc4 would win.} (23. dxe5 {simplifies} Qxb5 24. Rxb5 Rd3 25. exf6 gxf6 26. Ra3) 23... Qxe4 {[%emt 0:00:55]} 24. Nd2 {[%emt 0:00:02]} Qc6 {[%emt 0:00:18]} (24... Qd3 $1 $11 25. Ndc4 Nd7 (25... exd4 26. Nxb6+ cxb6 27. Qe6+ Rd7 28. Rc4+ Nbc6 29. Rd1 $16)) 25. Ndc4 $16 {[%emt 0:00:34][%cal Oc4a5] Threatens to win with Nxa5!} Nd7 {[%emt 0:00:25]} (25... Nd5 $142) 26. Qa3 $2 {[%emt 0:01:24]} ({White should try} 26. Na3 $16) 26... Rhe8 $1 $11 {[%emt 0:00:04]} 27. Nxa5 {[%emt 0:00:34]} bxa5 $17 {[%emt 0:00:02]} 28. Rc4 {[%emt 0:00:07]} (28. Rxa5 $17 Nb6 29. Rc5) 28... Qa6 $19 {[%emt 0:00:12][%cal Oe7d5] White must now prevent ...Nd5!} 29. d5 $2 {[%emt 0:00:21][%mdl 8192]} (29. Qb3 $17 {is a better chance.}) 29... Nb6 {[%emt 0:00:49]} ({But not} 29... Nxd5 30. Ra4 N7b6 (30... Nxe3 31. Rxa5 Qd3 32. Ra8+ $17) 31. Rxa5 $19) 30. Rxc7+ {[%emt 0:00:07]} (30. Rc5 $142 Nexd5 31. Rxa5) 30... Kxc7 {[%emt 0:00:02]} 31. Qc5+ {[%emt 0:00:02]} Kb7 {[%emt 0:00:09]} 32. Nc4 {[%emt 0:00:01]} Nexd5 {[%emt 0:00:12]} (32... Rxd5 $2 {is the wrong capture.} 33. Rxb6+ $18) 33. Nxa5+ {[%emt 0:00:20]} Ka8 {[%emt 0:00:02]} 34. Qc6+ {[%emt 0:00:32]} Ka7 {[%emt 0:00:03]} 35. Nb3 {[%emt 0:00:01]} Rc8 {[%emt 0:00:13]} 36. Qd6 {[%emt 0:00:01]} Red8 {[%emt 0:00:05]} 37. Qe6 {[%emt 0:00:01]} Nxc3 {[%emt 0:00:02]} 38. Ra1 {[%emt 0:00:05]} Rd1+ {[%emt 0:00:05]} 39. Rxd1 {[%emt 0:00:02]} Nxd1 {[%emt 0:00:00]} 0-1

[Event "CCT Julius Baer-D3 2024"]
[Site "Online"]
[Date "2024.09.27"]
[Round "2"]
[White "Sindarov, Javokhir"]
[Black "Kamsky, Gata"]
[Result "1-0"]
[ECO "B22"]
[WhiteElo "2677"]
[BlackElo "2609"]
[Annotator "TA"]
[PlyCount "57"]
[EventDate "2024.09.25"]
[EventType "swiss"]
[EventCountry "NET"]
[SourceTitle "playchess.com"]
[Source "ChessBase"]
[SourceQuality "1"]
[TimeControl "600+2"]

{[%evp 12,56,21,0,32,31,29,20,25,20,27,21,23,14,24,22,22,30,25,0,0,0,8,5,30,27,28,26,39,36,33,0,30,0,0,0,93,110,110,91,105,103,178,151,384,337,29999]} 1. e4 {[%emt 0:00:02]} c5 {[%emt 0:00:03]} 2. Nf3 {[%emt 0:00:14]} e6 {[%emt 0:00:01]} 3. c3 {[%emt 0:00:23]} Nf6 {[%emt 0:00:20]} 4. e5 {[%emt 0:00:01]} Nd5 {[%emt 0:00:02]} 5. a3 {[%emt 0:00:07]} b6 {[%emt 0:00:06]} 6. d4 {[%emt 0:00:01]} cxd4 {[%emt 0:00:02]} 7. cxd4 {[%emt 0:00:01]} Ba6 {[%emt 0:00:06]} 8. Bxa6 {[%emt 0:01:18]} Nxa6 {[%emt 0:00:03]} 9. Bg5 {[%emt 0:00:01]} Be7 {[%emt 0:00:15] The position is equal.} 10. Bxe7 {[%emt 0:00:02]} Qxe7 {[%emt 0:00:01]} 11. O-O {[%emt 0:00:27]} O-O {[%emt 0:00:03]} 12. Nbd2 {[%emt 0:00:08][%cal Bb1d2,Bd2c4,Bc4d6,Bd6e4][%mdl 32]} f5 {[%emt 0:00:30]} 13. Rc1 {[%emt 0:01:02]} Nac7 {[%emt 0:00:11]} 14. Nc4 {[%emt 0:00:22]} g5 {[%emt 0:00:22][%cal Bg7g5,Bg5g4][%mdl 32]} 15. Qd2 {[%emt 0:00:27]} g4 {[%emt 0:00:07]} 16. Ne1 {[%emt 0:00:01][%cal Bf3e1,Be1d3,Bd3e5,Be5d7][%mdl 32]} f4 {[%emt 0:00:21]} 17. Nd6 {[%emt 0:00:22]} Ne8 {[%emt 0:00:03]} 18. Ne4 {[%emt 0:00:01]} Qg7 {[%emt 0:00:31]} 19. Nd3 {[%emt 0:00:07]} Qg6 {[%emt 0:00:04]} 20. Rfe1 {[%emt 0:00:11]} a5 {[%emt 0:00:13]} 21. Kh1 {[%emt 0:00:39]} Ng7 {[%emt 0:00:25]} 22. Nf6+ {[%emt 0:00:51]} Nxf6 {[%emt 0:00:06]} 23. exf6 {[%emt 0:00:01]} Rxf6 {[%emt 0:00:09]} (23... Qxf6 $11 {remains equal.} 24. Re4 (24. Ne5 Qh4 $16) 24... Nh5) 24. Ne5 $1 $16 {[%emt 0:00:10]} (24. Nxf4 Qh6 25. g3 Nh5) 24... Qg5 {[%emt 0:02:56]} 25. Nxd7 {[%emt 0:00:02]} Rh6 {[%emt 0:00:02]} 26. Re4 {[%emt 0:00:09] White has more active pieces.} (26. Nxb6 Rf8 27. Rc3 (27. Nd7 $2 Qh5 $19) 27... Rh4 $17) 26... Rd8 {[%emt 0:00:46]} (26... Nh5 $16) 27. Qxf4 $18 {[%emt 0:00:09]} (27. Nxb6 $2 {is the wrong capture.} e5 28. Rc3 (28. Rxe5 $2 Qxe5 29. Rc8 Rhd6 $19) (28. Qxa5 $2 Qh5 $19) 28... Rxb6 $19) 27... Qh4 {[%emt 0:00:27] [#]} (27... Qxf4 $16 28. Rxf4 Rxd7) 28. Rc7 {[%emt 0:00:50]} (28. Qxg4 $2 Qxh2#) (28. Nxb6 e5 29. Qxe5 Re6 $11 (29... Rxb6 30. Qxa5 Rxb2 31. Rxg4 $11)) 28... Ne8 $2 {[%emt 0:02:32]} (28... e5 $18 29. Nxe5 (29. dxe5 Kh8 $18) (29. Rxe5 Ne6 $15) 29... Rf8) 29. Qf8# {[%emt 0:00:03] Weighted Error Value: White=0.10 (very precise) /Black=0.47.  Loses game:     	---       	Black=1      Mistake:       	---       	Black=3      Inaccurate:     	White=2     	Black=1      OK:         	White=11    	Black=8      Best:        	White=2     	Black=2      Strong:       	White=1     	---} 1-0

[Event "CCT Julius Baer-D3 2024"]
[Site "Online"]
[Date "2024.09.27"]
[Round "2"]
[White "Gelfand, Boris"]
[Black "Korobov, Anton"]
[Result "1/2-1/2"]
[ECO "A07"]
[WhiteElo "2658"]
[BlackElo "2650"]
[Annotator "TA"]
[PlyCount "99"]
[EventDate "2024.09.25"]
[EventType "swiss"]
[EventCountry "NET"]
[SourceTitle "playchess.com"]
[Source "ChessBase"]
[SourceQuality "1"]
[TimeControl "600+2"]

{[%evp 9,99,8,13,2,17,0,0,0,14,11,12,0,-16,-16,-2,-19,0,-16,0,0,33,38,29,18,27,9,22,19,21,20,23,20,16,16,35,-20,-19,-38,-29,-31,-35,-28,-32,-47,-24,-27,-21,-16,-17,-18,-18,-22,-15,-12,0,-19,-10,-31,-12,-11,0,0,0,-25,-27,-27,0,-55,0,-22,0,0,38,0,0,0,0,0,0,0,0,0,0,0,7,0,0,0,0,0,0,0]} 1. Nf3 {[%emt 0:00:03]} d5 {[%emt 0:00:05]} 2. g3 {[%emt 0:00:01]} c6 {[%emt 0:00:01]} 3. Bg2 {[%emt 0:00:01]} Bg4 {[%emt 0:00:01]} 4. h3 {[%emt 0:00:02]} Bxf3 {[%emt 0:00:05]} 5. Bxf3 {[%emt 0:00:02]} Nd7 {[%emt 0:00:03]} 6. d3 {[%emt 0:00:06]} Ngf6 {[%emt 0:00:11]} 7. O-O {[%emt 0:00:03]} e5 {[%emt 0:00:15]} 8. e4 {[%emt 0:00:04]} Be7 {[%emt 0:00:10]} 9. exd5 {[%emt 0:00:28]} Nxd5 {[%emt 0:00:02]} 10. Nc3 {[%emt 0:00:10]} Nxc3 {[%emt 0:00:10]} 11. bxc3 {[%emt 0:00:02]} O-O {[%emt 0:00:00]} 12. Re1 {[%emt 0:00:13]} Qc7 {[%emt 0:00:05]} 13. Rb1 {[%emt 0:00:21]} Rad8 {[%emt 0:00:06]} 14. Bg2 {[%emt 0:00:12]} Rfe8 {[%emt 0:00:10]} 15. Qg4 {[%emt 0:00:49]} Nf6 {[%emt 0:00:50]} 16. Qa4 {[%emt 0:00:04]} Bc5 {[%emt 0:00:19]} 17. Bg5 {[%emt 0:00:14] aiming for Bxf6.} Re6 {[%emt 0:00:09]} 18. Qc4 {[%emt 0:01:14]} Bb6 {[%emt 0:00:21]} 19. Re2 {[%emt 0:01:36]} h6 {[%emt 0:00:08]} 20. Bd2 {[%emt 0:00:01]} Rde8 {[%emt 0:01:54]} 21. Rbe1 {[%emt 0:00:05]} Qd6 {[%emt 0:00:30][%cal Oe5e4]} 22. a4 {[%emt 0:00:25] [#]} (22. Qb4 $14) 22... e4 $1 $11 {[%emt 0:01:57]} 23. dxe4 {[%emt 0:00:30] [#]} (23. d4 Ba5) 23... Nxe4 $1 {[%emt 0:00:36]} 24. Bf4 {[%emt 0:01:28]} (24. Rxe4 Qxd2) 24... Qc5 {[%emt 0:00:06]} 25. Qxc5 {[%emt 0:00:07]} Nxc5 {[%emt 0:00:02]} 26. Rxe6 {[%emt 0:00:13]} Rxe6 {[%emt 0:00:00]} 27. Ra1 {[%emt 0:00:47]} Ne4 {[%emt 0:00:14]} 28. Bxe4 {[%emt 0:00:11]} Rxe4 {[%emt 0:00:00][%mdl 4096] Endgame. KRB-KRB} 29. a5 {[%emt 0:00:02]} Bc5 {[%emt 0:00:03]} 30. Kf1 {[%emt 0:00:06] Against Re2} Kf8 {[%emt 0:00:29]} 31. f3 {[%emt 0:00:29]} Re7 {[%emt 0:00:37]} 32. Ra4 {[%emt 0:00:04]} g5 {[%emt 0:00:19]} 33. Bd2 {[%emt 0:00:01]} a6 {[%emt 0:00:08]} 34. h4 {[%emt 0:00:03]} f6 {[%emt 0:00:01]} 35. h5 {[%emt 0:00:04]} Kf7 {[%emt 0:00:12]} 36. Rc4 {[%emt 0:00:05]} Bd6 {[%emt 0:00:10]} 37. g4 {[%emt 0:00:01]} Re5 {[%emt 0:00:11]} 38. Ra4 {[%emt 0:00:09]} (38. Rd4 $11 Bc7 39. c4) 38... Rb5 {[%emt 0:00:01]} (38... f5 $15) 39. Ke2 {[%emt 0:00:03]} Bc7 {[%emt 0:00:04]} 40. c4 {[%emt 0:00:01]} Rb1 {[%emt 0:00:03]} 41. Rb4 {[%emt 0:00:03]} Rxb4 {[%emt 0:00:01] The position is equal.} 42. Bxb4 {[%emt 0:00:01] KB-KB} Be5 {[%emt 0:00:06]} 43. Kd3 {[%emt 0:00:03]} Bh2 {[%emt 0:00:01]} 44. Ke4 {[%emt 0:00:03]} Bc7 {[%emt 0:00:06]} 45. Kf5 {[%emt 0:00:02]} Bd8 {[%emt 0:00:01]} 46. c5 {[%emt 0:00:08]} Be7 {[%emt 0:00:03]} 47. Ba3 {[%emt 0:00:02]} Bd8 {[%emt 0:00:01]} 48. Bb4 {[%emt 0:00:01]} Be7 {[%emt 0:00:01]} 49. Ba3 {[%emt 0:00:01]} Bd8 {[%emt 0:00:01]} 50. Bb4 {[%emt 0:00:01] Weighted Error Value: White=0.11 (very precise) /Black=0.09 (flawless) .  Mistake:       	White=2     	Black=1      Inaccurate:     	White=2     	Black=3      OK:         	White=17    	Black=14     Best:        	White=1     	---} 1/2-1/2

[Event "CCT Julius Baer-D3 2024"]
[Site "Online"]
[Date "2024.09.27"]
[Round "2"]
[White "Korobov, Anton"]
[Black "Gelfand, Boris"]
[Result "1/2-1/2"]
[ECO "D40"]
[WhiteElo "2650"]
[BlackElo "2658"]
[Annotator "RC"]
[PlyCount "83"]
[EventDate "2024.09.25"]
[EventType "swiss"]
[EventCountry "NET"]
[SourceTitle "playchess.com"]
[Source "ChessBase"]
[SourceQuality "1"]
[TimeControl "600+2"]

1. d4 {[%emt 0:00:05]} Nf6 {[%emt 0:00:03]} 2. c4 {[%emt 0:00:01]} e6 {[%emt 0:00:01]} 3. Nf3 {[%emt 0:00:01]} d5 {[%emt 0:00:02]} 4. e3 {[%emt 0:00:05]} Be7 {[%emt 0:00:02]} 5. Nc3 {[%emt 0:00:06]} O-O {[%emt 0:00:02]} 6. Bd3 {[%emt 0:00:07]} dxc4 {[%emt 0:00:28]} 7. Bxc4 {[%emt 0:00:03]} c5 {[%emt 0:00:01]} 8. O-O {[%emt 0:00:01]} Nc6 {[%emt 0:00:30]} 9. dxc5 {[%emt 0:00:05]} Qxd1 {[%emt 0:00:02]} 10. Rxd1 {[%emt 0:00:01]} Bxc5 {[%emt 0:00:01]} 11. a3 {[%emt 0:00:02]} b6 {[%emt 0:00:07]} 12. b4 {[%emt 0:00:08]} Be7 {[%emt 0:00:01]} 13. Bb2 {[%emt 0:00:15]} Bb7 {[%emt 0:00:14]} 14. Nb5 {[%emt 0:00:13]} Rfd8 {[%emt 0:01:47]} 15. Ne5 {[%emt 0:00:09]} Rxd1+ {[%emt 0:00:52]} 16. Rxd1 {[%emt 0:00:03]} Nxe5 {[%emt 0:00:01]} 17. Bxe5 {[%emt 0:00:01]} a5 {[%emt 0:00:58]} 18. bxa5 {[%emt 0:01:31]} bxa5 {[%emt 0:00:18]} 19. f3 {[%emt 0:00:29]} Bc6 {[%emt 0:00:34]} 20. a4 {[%emt 0:00:29]} Kf8 {[%emt 0:00:07]} 21. Kf2 {[%emt 0:00:32]} Nd7 {[%emt 0:00:17]} 22. Bd4 {[%emt 0:00:32]} Nc5 {[%emt 0:00:21]} 23. Ra1 {[%emt 0:00:05]} Rb8 {[%emt 0:00:15]} 24. Bc3 {[%emt 0:00:28]} Nxa4 {[%emt 0:00:52]} 25. Rxa4 {[%emt 0:00:01]} Bxb5 {[%emt 0:00:01]} 26. Bxb5 {[%emt 0:00:01]} Rxb5 {[%emt 0:00:01]} 27. Rxa5 {[%emt 0:00:01]} Rxa5 {[%emt 0:00:01]} 28. Bxa5 {[%emt 0:00:00]} f5 {[%emt 0:00:02]} 29. h3 {[%emt 0:00:02]} Kf7 {[%emt 0:00:01]} 30. Bc3 {[%emt 0:00:02]} Bd6 {[%emt 0:00:02]} 31. g4 {[%emt 0:00:01]} g6 {[%emt 0:00:01]} 32. e4 {[%emt 0:00:01]} fxe4 {[%emt 0:00:02]} 33. fxe4 {[%emt 0:00:09]} h5 {[%emt 0:00:03]} 34. Kf3 {[%emt 0:00:02]} hxg4+ {[%emt 0:00:01]} 35. Kxg4 {[%emt 0:00:01]} Be7 {[%emt 0:00:02]} 36. h4 {[%emt 0:00:01]} Bd6 {[%emt 0:00:01]} 37. h5 {[%emt 0:00:01]} gxh5+ {[%emt 0:00:01]} 38. Kxh5 {[%emt 0:00:00]} Be7 {[%emt 0:00:03]} 39. Kg4 {[%emt 0:00:02]} Bd6 {[%emt 0:00:02]} 40. Kh5 {[%emt 0:00:03]} Be7 {[%emt 0:00:01]} 41. Kg4 {[%emt 0:00:00]} Bd6 {[%emt 0:00:01]} 42. Kh5 {[%emt 0:00:01]} 1/2-1/2

[Event "CCT Julius Baer-D3 2024"]
[Site "Online"]
[Date "2024.09.27"]
[Round "2"]
[White "Svane, Rasmus"]
[Black "Moussard, Jules"]
[Result "1-0"]
[ECO "D35"]
[WhiteElo "2629"]
[BlackElo "2600"]
[Annotator "TA"]
[PlyCount "67"]
[EventDate "2024.09.25"]
[EventType "swiss"]
[EventCountry "NET"]
[SourceTitle "playchess.com"]
[Source "ChessBase"]
[SourceQuality "1"]
[TimeControl "600+2"]

{[%evp 15,67,14,14,13,31,22,42,19,40,25,48,22,18,8,25,12,25,14,27,27,35,16,17,20,52,27,27,13,39,25,38,33,89,41,47,47,53,0,124,127,172,158,218,213,665,542,735,738,843,847,29967,6211,2339,653]} 1. c4 {[%emt 0:00:03]} e6 {[%emt 0:00:04]} 2. Nc3 {[%emt 0:00:02]} d5 {[%emt 0:00:01]} 3. d4 {[%emt 0:00:02]} Nf6 {[%emt 0:00:01]} 4. cxd5 {[%emt 0:00:02]} exd5 {[%emt 0:00:01]} 5. Bg5 {[%emt 0:00:01][%cal Bc1g5,Bg5h4,Bh4g3][%mdl 32]} c6 {[%emt 0:00:01]} 6. e3 {[%emt 0:00:01]} h6 {[%emt 0:00:01]} 7. Bh4 {[%emt 0:00:02]} Be7 {[%emt 0:00:01]} 8. Bd3 {[%emt 0:00:01]} O-O {[%emt 0:00:01]} 9. Nge2 {[%emt 0:00:03]} Ne8 {[%emt 0:00:02]} 10. Bg3 {[%emt 0:00:01]} Nd6 {[%emt 0:00:01]} 11. O-O {[%emt 0:00:37] White is slightly better.} Re8 {[%emt 0:00:03]} 12. Qc2 {[%emt 0:00:20]} Bf8 {[%emt 0:00:07]} 13. Rae1 {[%emt 0:00:03]} a5 {[%emt 0:00:39]} 14. Kh1 {[%emt 0:00:47]} Na6 {[%emt 0:00:08]} 15. a3 {[%emt 0:00:02] Dodges Nb4} Nc7 {[%emt 0:00:16]} 16. Ng1 {[%emt 0:00:53]} b5 {[%emt 0:00:22]} 17. Nf3 {[%emt 0:00:36]} Nc4 {[%emt 0:01:06]} 18. Ne5 {[%emt 0:00:18]} Nxe5 {[%emt 0:00:01]} 19. Bxe5 {[%emt 0:00:00]} Bd6 {[%emt 0:00:03]} 20. Bxd6 {[%emt 0:00:08]} Qxd6 {[%emt 0:00:00]} 21. Rc1 {[%emt 0:00:26]} Ne6 {[%emt 0:00:29]} 22. Ne2 {[%emt 0:00:11]} Bd7 {[%emt 0:00:10]} 23. Bf5 {[%emt 0:00:03]} h5 {[%emt 0:00:47]} (23... a4 $14) 24. Bxe6 {[%emt 0:00:52]} ({Better is} 24. Ng3 $16) 24... Qxe6 $14 {[%emt 0:00:02]} 25. Nf4 {[%emt 0:00:02][%csl LRe6,LRh5]} Qh6 {[%emt 0:00:07]} 26. Nd3 {[%emt 0:00:27]} (26. h4 $14) 26... h4 {[%emt 0:00:45]} (26... Bf5 $11) 27. Ne5 $36 {[%emt 0:00:25][%cal Bd3e5,Be5d7,Bd7e5][%mdl 2080] White is really pushing.} h3 {[%emt 0:00:26]} 28. Nxd7 {[%emt 0:00:25]} hxg2+ {[%emt 0:00:03]} (28... Qe6 $16 {might work better.}) 29. Kxg2 $18 {[%emt 0:00:01]} Re4 $2 {[%emt 0:00:52] [#]} (29... Qe6) 30. Ne5 {[%emt 0:00:49]} Re8 {[%emt 0:00:27]} 31. Qxc6 {[%emt 0:00:38]} Qg5+ {[%emt 0:00:01]} 32. Kh1 {[%emt 0:00:01]} Re6 {[%emt 0:00:05]} 33. Qa8+ {[%emt 0:00:10]} (33. Qc8+ $142 Kh7 34. Qh8+ (34. Nxf7 Qh5 $18) 34... Kxh8 35. Nxf7+ Kg8 36. Nxg5 g6 37. Nxe4 Rxe4 38. Rc5 (38. Rc8+ Kf7 $18)) 33... Kh7 {[%emt 0:00:01]} 34. Qh8+ {[%emt 0:00:01] Weighted Error Value: White=0.23 (precise) /Black=0.82.  Mistake:       	White=2     	Black=4      Inaccurate:     	White=1     	Black=4      OK:         	White=5     	Black=4      Best:        	White=2     	Black=1} 1-0